lending/lending_fUSD_20241120
["ID","MTS","AMOUNT","RATE_DAILY","PERIOD"]
[342801016,1732143084641,-500.0,0.0005589,120]
[342801017,1732143084650,-698.15,0.0005589,120]
[342801018,1732143084660,-500.0,0.0005589,120]
[342801019,1732143084670,-500.0,0.0005589,120]
[342801020,1732143084680,-500.0,0.0005589,120]
[342801021,1732143084690,-500.0,0.0005589,120]
[342801022,1732143084700,-500.0,0.0005589,120]
[342801023,1732143084710,-500.0,0.0005589,120]
[342801024,1732143084720,-429.43802889,0.0005589,120]
[342801025,1732143084730,-500.0,0.0005589,120]
[342801026,1732143084740,-500.0,0.0005589,120]
[342801027,1732143084750,-550.21,0.0005589,120]
[342801028,1732143084759,-2000.0,0.0005589,30]
[342801029,1732143084770,-838.1,0.0005589,120]
[342801030,1732143084780,-500.0,0.0005589,120]
[342801031,1732143084789,-500.0,0.0005589,120]
[342801032,1732143084799,-678.26,0.0005589,120]
[342801033,1732143084809,-500.0,0.0005589,120]
[342801034,1732143084819,-500.0,0.0005589,120]
[342801035,1732143084829,-528.71,0.0005589,120]
[342801036,1732143084838,-577.89,0.0005589,120]
[342801037,1732143084848,-1058.89,0.0005589,120]
[342801038,1732143084858,-504.49158611,0.0005589,120]
[342801039,1732143084868,-500.0,0.0005589,120]
[342801040,1732143084878,-500.0,0.0005589,120]
[342801041,1732143084890,-500.0,0.0005589,120]
[342801042,1732143084900,-516.05,0.0005589,120]
[342801043,1732143084911,-500.0,0.0005589,120]
[342801044,1732143084920,-1582.8,0.0005589,120]
[342801045,1732143084931,-512.91,0.0005589,120]
[342801046,1732143084940,-910.7,0.0005589,120]
[342801047,1732143084950,-500.0,0.0005589,120]
[342801048,1732143084963,-686.07,0.0005589,120]
[342801049,1732143084973,-500.0,0.0005589,120]
[342801050,1732143084982,-718.84,0.0005589,120]
[342801051,1732143084992,-500.0,0.0005589,120]
[342801052,1732143085002,-566.64,0.0005589,120]
[342801053,1732143085012,-500.0,0.0005589,120]
[342801054,1732143085022,-581.13,0.0005589,120]
[342801055,1732143085031,-633.42744337,0.0005589,120]
[342801056,1732143085041,-558.19,0.0005589,120]
[342801057,1732143085051,-372.8295255,0.0005589,120]
[342801058,1732143085061,-1275.31,0.0005589,120]
[342801059,1732143085071,-500.0,0.0005589,120]
[342801060,1732143085080,-500.0,0.0005589,120]
[342801061,1732143085090,-500.0,0.0005589,120]
[342801062,1732143085100,-646.55,0.0005589,120]
[342801063,1732143085110,-500.0,0.0005589,120]
[342801064,1732143085119,-889.52,0.0005589,120]
[342801065,1732143085130,-500.0,0.0005589,120]
[342801066,1732143085140,-1844.67,0.0005589,120]
[342801067,1732143085150,-1345.16,0.0005589,120]
[342801068,1732143085162,-500.0,0.0005589,120]
[342801069,1732143085173,-500.0,0.0005589,120]
[342801070,1732143085183,-1354.36,0.0005589,120]
[342801071,1732143085192,-500.0,0.0005589,120]
[342801072,1732143085202,-500.0,0.0005589,120]
[342801073,1732143085212,-500.0,0.0005589,120]
[342801074,1732143085223,-1126.54,0.0005589,120]
[342801075,1732143085232,-810.54,0.0005589,120]
[342801076,1732143085242,-1630.49,0.0005589,120]
[342801077,1732143085252,-500.0,0.0005589,120]
[342801078,1732143085262,-1061.11,0.0005589,120]
[342801079,1732143085272,-1539.37,0.0005589,120]
[342801080,1732143085282,-565.30430767,0.0005589,120]
[342801081,1732143085292,-500.0,0.0005589,120]
[342801082,1732143085302,-500.0,0.0005589,120]
[342801083,1732143085312,-616.53,0.0005589,120]
[342801084,1732143085321,-500.0,0.0005589,120]
[342801085,1732143085331,-1163.7,0.0005589,120]
[342801086,1732143085341,-500.0,0.0005589,120]
[342801087,1732143085352,-252.55384502,0.0005589,120]
[342801088,1732143085364,-500.0,0.0005589,120]
[342801089,1732143085375,-1697.48,0.0005589,120]
[342801090,1732143085385,-500.0,0.0005589,120]
[342801091,1732143085395,-768.83,0.0005589,120]
[342801092,1732143085406,-500.0,0.0005589,120]
[342801093,1732143085419,-1494.04,0.0005589,120]
[342801094,1732143085428,-583.76,0.0005589,120]
[342801095,1732143085438,-500.0,0.0005589,120]
[342801096,1732143085448,-500.0,0.0005589,120]
[342801097,1732143085458,-500.0,0.0005589,120]
[342801098,1732143085469,-500.0,0.0005589,120]
[342801099,1732143085479,-1417.12,0.0005589,120]
[342801100,1732143085490,-500.0,0.0005589,120]
[342801101,1732143085500,-500.0,0.0005589,120]
[342801102,1732143085511,-514.86,0.0005589,120]
[342801103,1732143085521,-580.28,0.0005589,120]
[342801104,1732143085531,-500.0,0.0005589,120]
[342801105,1732143085542,-500.0,0.0005589,120]
[342801106,1732143085551,-500.0,0.0005589,120]
[342801107,1732143085562,-500.0,0.0005589,120]
[342801108,1732143085572,-500.0,0.0005589,120]
[342801109,1732143085582,-625.85,0.0005589,120]
[342801110,1732143085592,-500.0,0.0005589,120]
[342801111,1732143085602,-835.63,0.0005589,120]
[342801112,1732143085612,-500.0,0.0005589,120]
[342801113,1732143085622,-1642.42,0.0005589,7]
[342801114,1732143085632,-500.0,0.0005589,120]
[342801115,1732143085642,-1168.69,0.0005589,120]
[342801116,1732143085652,-500.0,0.0005589,14]
[342801117,1732143085665,-500.0,0.0005589,120]
[342801118,1732143085675,-785.67,0.0005589,120]
[342801119,1732143085685,-526.48,0.0005589,120]
[342801120,1732143085695,-500.0,0.0005589,120]
[342801121,1732143085705,-1791.8,0.0005589,120]
[342801122,1732143085715,-500.0,0.0005589,120]
[342801123,1732143085724,-500.0,0.0005589,120]
[342801124,1732143085735,-500.0,0.0005589,120]
[342801125,1732143085744,-500.0,0.0005589,30]
[342801126,1732143085754,-500.0,0.0005589,120]
[342801127,1732143085765,-500.0,0.0005589,120]
[342801128,1732143085774,-500.0,0.0005589,120]
[342801129,1732143085784,-764.29,0.0005589,120]
[342801130,1732143085793,-937.69,0.0005589,120]
[342801131,1732143085803,-830.14,0.0005589,120]
[342801132,1732143085813,-500.0,0.0005589,58]
[342801133,1732143085823,-500.0,0.0005589,120]
[342801134,1732143085833,-500.0,0.0005589,120]
[342801135,1732143085843,-1926.82,0.0005589,120]
[342801136,1732143085853,-500.0,0.0005589,30]
[342801137,1732143085863,-500.0,0.0005589,120]
[342801138,1732143085872,-513.97,0.0005589,120]
[342801139,1732143085885,-500.0,0.0005589,120]
[342801140,1732143085896,-1258.94,0.0005589,120]
[342801141,1732143085905,-615.91,0.0005589,120]
[342801142,1732143085920,-500.0,0.0005589,120]
[342801143,1732143085930,-739.53,0.0005589,120]
[342801144,1732143085940,-500.0,0.0005589,120]
[342801145,1732143085950,-2364.09,0.0005589,120]
[342801146,1732143085962,-500.0,0.0005589,120]
[342801147,1732143085972,-500.0,0.0005589,120]
[342801148,1732143085982,-500.0,0.0005589,120]
[342801149,1732143085992,-1516.8,0.0005589,120]
[342801150,1732143086002,-644.03,0.0005589,120]
[342801151,1732143086012,-1222.69,0.0005589,120]
[342801152,1732143086022,-689.07,0.0005589,120]
[342801153,1732143086032,-2792.61,0.0005589,120]
[342801154,1732143086042,-500.0,0.0005589,120]
[342801155,1732143086052,-500.0,0.0005589,120]
[342801156,1732143086062,-500.0,0.0005589,120]
[342801157,1732143086073,-598.66,0.0005589,120]
[342801158,1732143086083,-500.0,0.0005589,120]
[342801159,1732143086092,-500.0,0.0005589,120]
[342801160,1732143086102,-696.8,0.0005589,120]
[342801161,1732143086112,-517.71,0.0005589,120]
[342801162,1732143086122,-500.0,0.0005589,120]
[342801163,1732143086132,-670.6,0.0005589,120]
[342801164,1732143086142,-1622.41,0.0005589,120]
[342801165,1732143086152,-500.0,0.0005589,120]
[342801166,1732143086163,-732.47,0.0005589,120]
[342801167,1732143086172,-500.0,0.0005589,120]
[342801168,1732143086182,-500.0,0.0005589,120]
[342801169,1732143086192,-500.0,0.0005589,120]
[342801170,1732143086202,-500.0,0.0005589,120]
[342801171,1732143086212,-3752.95,0.0005589,120]
[342801172,1732143086222,-500.0,0.0005589,120]
[342801173,1732143086232,-694.86,0.0005589,120]
[342801174,1732143086242,-500.0,0.0005589,120]
[342801175,1732143086252,-527.72,0.0005589,120]
[342801176,1732143086546,-500.0,0.0005589,120]
[342801177,1732143086556,-2754.45,0.0005589,120]
[342801178,1732143086565,-500.0,0.0005589,120]
[342801179,1732143086576,-500.0,0.0005589,60]
[342801180,1732143086586,-777.0,0.0005589,120]
[342801181,1732143086596,-1552.42,0.0005589,120]
[342801182,1732143086607,-750.37,0.0005589,120]
[342801183,1732143086617,-586.88,0.0005589,120]
[342801184,1732143086628,-500.0,0.0005589,120]
[342801185,1732143086637,-546.79,0.0005589,120]
[342801186,1732143086649,-500.0,0.0005589,120]
[342801187,1732143086659,-1410.35,0.0005589,120]
[342801188,1732143086669,-622.81,0.0005589,120]
[342801189,1732143086679,-500.0,0.0005589,120]
[342801190,1732143086689,-500.0,0.0005589,120]
[342801191,1732143086699,-1078.42,0.0005589,120]
[342801192,1732143086708,-2348.91,0.0005589,120]
[342801193,1732143086719,-500.0,0.0005589,120]
[342801194,1732143086728,-1803.88,0.0005589,120]
[342801195,1732143086738,-875.42,0.0005589,120]
[342801196,1732143086748,-500.0,0.0005589,120]
[342801197,1732143086757,-908.45,0.0005589,120]
[342801198,1732143086767,-500.0,0.0005589,120]
[342801199,1732143086777,-1745.98,0.0005589,120]
[342801200,1732143086787,-643.69,0.0005589,120]
[342801201,1732143086797,-659.6,0.0005589,120]
[342801202,1732143086807,-500.0,0.0005589,120]
[342801203,1732143086817,-1212.54,0.0005589,120]
[342801204,1732143086827,-2042.25,0.0005589,120]
[342801205,1732143086837,-828.06,0.0005589,120]
[342801206,1732143086847,-500.0,0.0005589,120]
[342801207,1732143086856,-500.0,0.0005589,120]
[342801208,1732143086867,-646.63,0.0005589,120]
[342801209,1732143086877,-806.31,0.0005589,120]
[342801210,1732143086890,-500.0,0.0005589,120]
[342801211,1732143086900,-1287.88,0.0005589,120]
[342801212,1732143086910,-1410.77,0.0005589,120]
[342801213,1732143086919,-579.76901455,0.0005589,120]
[342801214,1732143086930,-500.0,0.0005589,120]
[342801215,1732143086940,-500.0,0.0005589,120]
[342801216,1732143086950,-500.0,0.0005589,120]
[342801217,1732143086963,-623.91,0.0005589,120]
[342801218,1732143086972,-503.59726571,0.0005589,120]
[342801219,1732143086983,-228.273339,0.0005589,120]
[342801220,1732143086994,-500.0,0.0005589,120]
[342801221,1732143087003,-1000.52,0.0005589,120]
[342801222,1732143087014,-766.21,0.0005589,120]
[342801223,1732143087024,-500.0,0.0005589,120]
[342801224,1732143087033,-228.273339,0.0005589,120]
[342801225,1732143087043,-500.0,0.0005589,120]
[342801226,1732143087052,-500.0,0.0005589,120]
[342801227,1732143087062,-1013.49,0.0005589,120]
[342801228,1732143087072,-811.56,0.0005589,120]
[342801229,1732143087082,-500.0,0.0005589,120]
[342801230,1732143087091,-500.0,0.0005589,120]
[342801231,1732143087101,-3361.2,0.0005589,120]
[342801232,1732143087110,-633.81,0.0005589,120]
[342801233,1732143087120,-151.0,0.0005589,120]
[342801234,1732143087130,-1185.33,0.0005589,120]
[342801235,1732143087139,-838.48,0.0005589,120]
[342801236,1732143087149,-244.673666,0.0005589,120]
[342801237,1732143087159,-1382.6,0.0005589,120]
[342801238,1732143087169,-500.0,0.0005589,120]
[342801239,1732143087178,-244.673666,0.0005589,120]
[342801240,1732143087188,-500.0,0.0005589,120]
[342801241,1732143087198,-2198.56,0.0005589,120]
[342801242,1732143087207,-658.16,0.0005589,120]
[342801243,1732143087217,-500.0,0.0005589,120]
[342801244,1732143087227,-500.0,0.0005589,120]
[342801245,1732143087237,-151.0,0.0005589,120]
[342801246,1732143087247,-500.0,0.0005589,120]
[342801247,1732143087257,-500.0,0.0005589,120]
[342801248,1732143087267,-203.909495,0.0005589,120]
[342801249,1732143087276,-500.0,0.0005589,120]
[342801250,1732143087286,-581.06,0.0005589,120]
[342801251,1732143087296,-151.0,0.0005589,120]
[342801252,1732143087306,-500.0,0.0005589,120]
[342801253,1732143087315,-843.03,0.0005589,120]
[342801254,1732143087325,-500.0,0.0005589,120]
[342801255,1732143087334,-665.72,0.0005589,120]
[342801256,1732143087344,-500.0,0.0005589,120]
[342801257,1732143087353,-789.82,0.0005589,120]
[342801258,1732143087362,-660.24,0.0005589,120]
[342801259,1732143087372,-773.4,0.0005589,120]
[342801260,1732143087382,-595.64980518,0.0005589,120]
[342801261,1732143087392,-500.0,0.0005589,120]
[342801262,1732143087401,-504.35,0.0005589,120]
[342801263,1732143087411,-2411.2,0.0005589,120]
[342801264,1732143087420,-151.0,0.0005589,120]
[342801265,1732143087430,-500.0,0.0005589,120]
[342801266,1732143087439,-3997.56,0.0005589,120]
[342801267,1732143087449,-151.0,0.0005589,120]
[342801268,1732143087459,-500.0,0.0005589,120]
[342801269,1732143087469,-500.0,0.0005589,120]
[342801270,1732143087478,-151.0,0.0005589,120]
[342801271,1732143087488,-500.0,0.0005589,120]
[342801272,1732143087497,-500.0,0.0005589,120]
[342801273,1732143087506,-155.055593,0.0005589,120]
[342801274,1732143087515,-220.349852,0.0005589,120]
[342801275,1732143087525,-151.0,0.0005589,7]
[342801276,1732143087534,-178.477726,0.0005589,120]
[342801277,1732143087543,-559.66,0.0005589,120]
[342801278,1732143087553,-500.0,0.0005589,120]
[342801279,1732143087563,-1755.1,0.0005589,120]
[342801280,1732143087572,-500.0,0.0005589,120]
[342801281,1732143087582,-500.0,0.0005589,120]
[342801282,1732143087592,-1021.42,0.0005589,120]
[342801283,1732143087603,-968.59,0.0005589,120]
[342801284,1732143087613,-500.0,0.0005589,120]
[342801285,1732143087622,-747.74,0.0005589,120]
[342801286,1732143087631,-202.397127,0.0005589,120]
[342801287,1732143087640,-151.0,0.0005589,120]
[342801288,1732143087650,-500.0,0.0005589,120]
[342801289,1732143087659,-650.26,0.0005589,120]
[342801290,1732143087670,-552.66,0.0005589,120]
[342801291,1732143087680,-500.0,0.0005589,120]
[342801292,1732143087689,-528.53,0.0005589,120]
[342801293,1732143087698,-500.0,0.0005589,120]
[342801294,1732143087707,-661.12,0.0005589,120]
[342801295,1732143087717,-4504.33,0.0005589,120]
[342801296,1732143087726,-500.0,0.0005589,120]
[342801297,1732143087735,-500.0,0.0005589,120]
[342801298,1732143087744,-500.0,0.0005589,120]
[342801299,1732143087753,-1414.7,0.0005589,120]
[342801300,1732143087763,-500.0,0.0005589,120]
[342801301,1732143087772,-1839.1,0.0005589,20]
[342801302,1732143087781,-185.84763954,0.0005589,120]
[342801303,1732143087791,-600.15,0.0005589,120]
[342801304,1732143087800,-500.0,0.0005589,120]
[342801305,1732143087809,-500.0,0.0005589,120]
[342801306,1732143087818,-639.71,0.0005589,120]
[342801307,1732143087828,-226.403162,0.0005589,120]
[342801308,1732143087838,-500.0,0.0005589,120]
[342801309,1732143087848,-500.0,0.0005589,120]
[342801310,1732143087858,-226.403162,0.0005589,120]
[342801311,1732143087868,-321.16466271,0.0005589,120]
[342801312,1732143087877,-1685.02,0.0005589,120]
[342801313,1732143087891,-500.0,0.0005589,120]
[342801314,1732143087901,-643.92,0.0005589,120]
[342801315,1732143087911,-500.0,0.0005589,120]
[342801316,1732143087921,-500.0,0.0005589,120]
[342801317,1732143087931,-1838.85,0.0005589,120]
[342801318,1732143087941,-503.41,0.0005589,120]
[342801319,1732143087951,-777.36,0.0005589,120]
[342801320,1732143087962,-406.00167887,0.0005589,120]
[342801321,1732143087972,-500.0,0.0005589,120]
[342801322,1732143087987,-1088.52,0.0005589,120]
[342801323,1732143087998,-3963.88,0.0005589,120]
[342801324,1732143088009,-500.0,0.0005589,120]
[342801325,1732143088019,-500.0,0.0005589,120]
[342801326,1732143088029,-439.698091,0.0005589,120]
[342801327,1732143088040,-500.0,0.0005589,120]
[342801328,1732143088050,-439.698091,0.0005589,120]
[342801329,1732143088060,-500.0,0.0005589,120]
[342801330,1732143088070,-329.59976992,0.0005589,120]
[342801331,1732143088080,-500.0,0.0005589,120]
[342801332,1732143088091,-508.93,0.0005589,120]
[342801333,1732143088100,-500.0,0.0005589,120]
[342801334,1732143088111,-500.0,0.0005589,120]
[342801335,1732143088122,-500.0,0.0005589,120]
[342801336,1732143088132,-500.0,0.0005589,120]
[342801337,1732143088142,-522.18,0.0005589,120]
[342801338,1732143088152,-674.72,0.0005589,120]
[342801339,1732143088162,-151.0,0.0005589,120]
[342801340,1732143088178,-1573.1,0.0005589,120]
[342801341,1732143088188,-500.0,0.0005589,120]
[342801342,1732143088198,-500.0,0.0005589,120]
[342801343,1732143088209,-500.0,0.0005589,120]
[342801344,1732143088219,-500.0,0.0005589,120]
[342801345,1732143088229,-1344.45,0.0005589,120]
[342801346,1732143088238,-378.63489262,0.0005589,120]
[342801347,1732143088248,-151.053105,0.0005589,120]
[342801348,1732143088258,-500.0,0.0005589,120]
[342801349,1732143088268,-695.34,0.0005589,120]
[342801350,1732143088278,-5030.76,0.0005589,120]
[342801351,1732143088288,-993.23,0.0005589,120]
[342801352,1732143088298,-530.39,0.0005589,120]
[342801353,1732143088308,-500.0,0.0005589,120]
[342801354,1732143088318,-1007.71,0.0005589,120]
[342801355,1732143088328,-845.57,0.0005589,120]
[342801356,1732143088339,-1508.05,0.0005589,120]
[342801357,1732143088349,-1000.0,0.0005589,30]
[342801358,1732143088359,-500.0,0.0005589,120]
[342801359,1732143088370,-1949.27,0.0005589,120]
[342801360,1732143088380,-635.4,0.0005589,120]
[342801361,1732143088390,-3671.8,0.0005589,120]
[342801362,1732143088399,-500.0,0.0005589,120]
[342801363,1732143088412,-873.15,0.0005589,120]
[342801364,1732143088422,-1275.78,0.0005589,120]
[342801365,1732143088432,-500.0,0.0005589,120]
[342801366,1732143088442,-500.0,0.0005589,120]
[342801367,1732143088451,-500.0,0.0005589,120]
[342801368,1732143088462,-1300.6,0.0005589,120]
[342801369,1732143088471,-1078.43,0.0005589,120]
[342801370,1732143088482,-500.0,0.0005589,120]
[342801371,1732143088491,-1015.57,0.0005589,120]
[342801372,1732143088502,-729.83,0.0005589,120]
[342801373,1732143088512,-506.30834027,0.0005589,120]
[342801374,1732143088522,-562.04,0.0005589,120]
[342801375,1732143088532,-2596.1,0.0005589,120]
[342801376,1732143088542,-500.0,0.0005589,120]
[342801377,1732143088552,-500.0,0.0005589,120]
[342801378,1732143088561,-2222.66,0.0005589,120]
[342801379,1732143088571,-1080.64,0.0005589,120]
[342801380,1732143088580,-852.14,0.0005589,120]
[342801381,1732143088590,-569.32,0.0005589,120]
[342801382,1732143088600,-509.24,0.0005589,120]
[342801383,1732143088610,-500.0,0.0005589,120]
[342801384,1732143088620,-700.0,0.0005589,120]
[342801385,1732143088633,-928.5,0.0005589,120]
[342801386,1732143088642,-1411.12131,0.0005589,120]
[342801387,1732143088652,-151.0,0.0005589,120]
[342801388,1732143088662,-500.0,0.0005589,120]
[342801389,1732143088671,-1411.12131,0.0005589,120]
[342801390,1732143088681,-500.0,0.0005589,120]
[342801391,1732143088691,-500.0,0.0005589,120]
[342801392,1732143088701,-151.0,0.0005589,120]
[342801393,1732143088711,-500.0,0.0005589,120]
[342801394,1732143088720,-1129.79,0.0005589,120]
[342801395,1732143088730,-1806.6,0.0005589,120]
[342801396,1732143088740,-500.0,0.0005589,120]
[342801397,1732143088751,-500.0,0.0005589,120]
[342801398,1732143088760,-275.976978,0.0005589,120]
[342801399,1732143088771,-2425.19,0.0005589,120]
[342801400,1732143088781,-500.0,0.0005589,120]
[342801401,1732143088791,-625.0,0.0005589,120]
[342801402,1732143088801,-500.0,0.0005589,120]
[342801403,1732143088812,-500.0,0.0005589,120]
[342801404,1732143088822,-500.0,0.0005589,120]
[342801405,1732143088831,-500.0,0.0005589,120]
[342801406,1732143088841,-1018.93,0.0005589,120]
[342801407,1732143088851,-2073.72,0.0005589,120]
[342801408,1732143088862,-151.0,0.0005589,120]
[342801409,1732143088872,-151.0,0.0005589,120]
[342801410,1732143088887,-373.80721241,0.0005589,120]
[342801411,1732143088896,-500.0,0.0005589,120]
[342801412,1732143088907,-1011.93,0.0005589,120]
[342801413,1732143088921,-500.0,0.0005589,120]
[342801414,1732143089061,-1257.41,0.0005589,120]
[342801415,1732143089071,-158.668737,0.0005589,120]
[342801416,1732143089081,-151.0,0.0005589,120]
[342801417,1732143089091,-500.0,0.0005589,120]
[342801418,1732143089100,-1328.54,0.0005589,120]
[342801419,1732143089109,-893.2,0.0005589,120]
[342801420,1732143089120,-878.56,0.0005589,120]
[342801421,1732143089129,-1954.12,0.0005589,120]
[342801422,1732143089138,-1107.33,0.0005589,120]
[342801423,1732143089148,-500.0,0.0005589,120]
[342801424,1732143089157,-500.0,0.0005589,120]
[342801425,1732143089168,-521.30578521,0.0005589,120]
[342801426,1732143089178,-5394.68,0.0005589,120]
[342801427,1732143089188,-500.0,0.0005589,120]
[342801428,1732143089198,-500.0,0.0005589,60]
[342801429,1732143089208,-500.0,0.0005589,120]
[342801430,1732143089218,-500.0,0.0005589,120]
[342801431,1732143089228,-502.35205531,0.0005589,120]
[342801432,1732143089237,-543.1,0.0005589,120]
[342801433,1732143089246,-151.0,0.0005589,120]
[342801434,1732143089256,-619.11525501,0.0005589,120]
[342801435,1732143089265,-965.73,0.0005589,120]
[342801436,1732143089275,-500.0,0.0005589,120]
[342801437,1732143089284,-500.0,0.0005589,120]
[342801438,1732143089293,-151.0,0.0005589,120]
[342801439,1732143089303,-151.0,0.0005589,120]
[342801440,1732143089313,-500.0,0.0005589,120]
[342801441,1732143089323,-500.0,0.0005589,120]
[342801442,1732143089333,-500.0,0.0005589,120]
[342801443,1732143089342,-500.0,0.0005589,120]
[342801444,1732143089352,-500.0,0.0005589,120]
[342801445,1732143089362,-151.0,0.0005589,120]
[342801446,1732143089371,-500.0,0.0005589,120]
[342801447,1732143089380,-1308.091702,0.0005589,120]
[342801448,1732143089390,-1317.76,0.0005589,120]
[342801449,1732143089399,-594.46,0.0005589,120]
[342801450,1732143089410,-1308.091702,0.0005589,120]
[342801451,1732143089420,-1510.86,0.0005589,120]
[342801452,1732143089429,-1617.12,0.0005589,120]
[342801453,1732143089439,-500.0,0.0005589,120]
[342801454,1732143089448,-657.08,0.0005589,120]
[342801455,1732143089457,-628.07,0.0005589,120]
[342801456,1732143089467,-4865.56,0.0005589,120]
[342801457,1732143089476,-567.172995,0.0005589,120]
[342801458,1732143089485,-500.0,0.0005589,120]
[342801459,1732143089495,-500.0,0.0005589,120]
[342801460,1732143089504,-500.0,0.0005589,120]
[342801461,1732143089514,-567.172995,0.0005589,120]
[342801462,1732143089524,-151.0,0.0005589,120]
[342801463,1732143089533,-500.0,0.0005589,120]
[342801464,1732143089543,-500.0,0.0005589,120]
[342801465,1732143089552,-2529.98,0.0005589,120]
[342801466,1732143089561,-500.0,0.0005589,120]
[342801467,1732143089571,-635.24,0.0005589,120]
[342801468,1732143089580,-750.97,0.0005589,120]
[342801469,1732143089590,-500.0,0.0005589,120]
[342801470,1732143089599,-1761.11,0.0005589,120]
[342801471,1732143089608,-624.76,0.0005589,120]
[342801472,1732143089618,-500.0,0.0005589,120]
[342801473,1732143089628,-46265.17,0.0005589,120]
[342801474,1732143089638,-500.0,0.0005589,120]
[342801475,1732143089648,-500.0,0.0005589,120]
[342801476,1732143089657,-644.52,0.0005589,120]
[342801477,1732143089669,-151.0,0.0005589,120]
[342801478,1732143089678,-880.93,0.0005589,120]
[342801479,1732143089688,-500.0,0.0005589,120]
[342801480,1732143089697,-500.0,0.0005589,120]
[342801481,1732143089707,-4390.12,0.0005589,120]
[342801482,1732143089717,-500.0,0.0005589,120]
[342801483,1732143089726,-500.0,0.0005589,120]
[342801484,1732143089735,-3641.91,0.0005589,120]
[342801485,1732143089744,-151.0,0.0005589,120]
[342801486,1732143089754,-406.98793197,0.0005589,120]
[342801487,1732143089763,-500.0,0.0005589,120]
[342801488,1732143089772,-2046.77,0.0005589,120]
[342801489,1732143089782,-500.0,0.0005589,120]
[342801490,1732143089791,-500.0,0.0005589,120]
[342801491,1732143089801,-151.0,0.0005589,120]
[342801492,1732143089810,-500.0,0.0005589,120]
[342801493,1732143089820,-500.0,0.0005589,120]
[342801494,1732143089829,-519.31,0.0005589,120]
[342801495,1732143089838,-1582.94,0.0005589,120]
[342801496,1732143089848,-1566.08,0.0005589,120]
[342801497,1732143089858,-550.87633893,0.0005589,120]
[342801498,1732143089867,-195.904106,0.0005589,120]
[342801499,1732143089877,-1540.18,0.0005589,120]
[342801500,1732143089890,-500.0,0.0005589,120]
[342801501,1732143089900,-500.0,0.0005589,120]
[342801502,1732143089910,-500.0,0.0005589,120]
[342801503,1732143089924,-500.0,0.0005589,120]
[342801504,1732143089934,-151.0,0.0005589,120]
[342801505,1732143089945,-200.0,0.0005589,10]
[342801506,1732143089956,-32182.96,0.0005589,120]
[342801507,1732143089967,-151.0,0.0005589,120]
[342801508,1732143089977,-500.0,0.0005589,120]
[342801509,1732143089987,-2395.44,0.0005589,120]
[342801510,1732143089997,-500.0,0.0005589,120]
[342801511,1732143090007,-500.0,0.0005589,120]
[342801512,1732143090017,-500.0,0.0005589,120]
[342801513,1732143090028,-448.87175881,0.0005589,120]
[342801514,1732143090038,-774.88,0.0005589,120]
[342801515,1732143090048,-500.0,0.0005589,120]